[Event "OGD Prinsenstad-toernooi - A groep"]
[Site "Delft"]
[Date "2013.03.31"]
[Round "5.6"]
[White "Peng, Zhaoqin"]
[Black "Slingerland, Fred"]
[Result "0-1"]
[ECO "D20"]
[WhiteElo "2385"]
[BlackElo "2336"]
[PlyCount "98"]
[EventDate "2013.03.29"]
[EventType "swiss"]
[EventRounds "6"]
[EventCountry "NED"]
[Source "DSC"]
[SourceDate "2013.02.04"]
[TimeControl "6000+10"]

1. d4 {[%emt 0:00:00]} d5 {[%emt 0:22:51]} 2. c4 {[%emt 0:00:02]} dxc4 {
[%emt 0:00:13]} 3. e4 {[%emt 0:00:54]} e5 {[%emt 0:00:04]} 4. Nf3 {
[%emt 0:00:13]} exd4 {[%emt 0:00:07]} 5. Qxd4 {[%emt 0:00:43]} Qxd4 {
[%emt 0:00:39]} 6. Nxd4 {[%emt 0:00:05]} Nf6 {[%emt 0:00:09]} 7. f3 {
[%emt 0:01:14]} Bc5 {[%emt 0:03:21]} 8. Nb5 {[%emt 0:04:46]} Na6 {
[%emt 0:00:30]} 9. Bxc4 {[%emt 0:04:33]} c6 {[%emt 0:00:32]} 10. N5a3 {
[%emt 0:00:44]} b5 {[%emt 0:08:04]} 11. Be2 {[%emt 0:30:26]} Nb4 {
[%emt 0:03:22]} 12. Nc3 {[%emt 0:00:07]} Be6 {[%emt 0:00:33]} 13. Bd2 {
[%emt 0:02:03]} Rd8 {[%emt 0:03:42]} 14. Rc1 {[%emt 0:00:59]} Bf2+ {
[%emt 0:02:06]} 15. Kxf2 {[%emt 0:03:25]} Rxd2 {[%emt 0:00:05]} 16. Rhd1 {
[%emt 0:15:32]} Rxb2 {[%emt 0:02:28]} 17. Naxb5 {[%emt 0:00:37]} cxb5 {
[%emt 0:02:05]} 18. Nxb5 {[%emt 0:02:27]} O-O {[%emt 0:02:33]} 19. a3 {
[%emt 0:03:12]} Na2 {[%emt 0:01:08]} 20. Rc7 {[%emt 0:00:56]} Bb3 {
[%emt 0:06:35]} 21. Rd4 {[%emt 0:03:37]} a5 {[%emt 0:08:40]} 22. Ke3 {
[%emt 0:06:15]} h6 {[%emt 0:00:16]} 23. h4 {[%emt 0:01:17]} Rb8 {[%emt 0:01:47]
} 24. Rc5 {[%emt 0:03:55]} Be6 {[%emt 0:09:23]} 25. Rd2 {[%emt 0:04:40]} Rxd2 {
[%emt 0:02:45]} 26. Kxd2 {[%emt 0:00:02]} Nd7 {[%emt 0:01:10]} 27. Rc7 {
[%emt 0:00:48]} a4 {[%emt 0:08:29]} 28. Nd4 {[%emt 0:01:24]} Rb2+ {
[%emt 0:01:42]} 29. Rc2 {[%emt 0:00:08]} Rxc2+ {[%emt 0:00:08]} 30. Kxc2 {
[%emt 0:00:02]} Bb3+ {[%emt 0:00:25]} 31. Nxb3 {[%emt 0:01:32]} axb3+ {
[%emt 0:00:03]} 32. Kb2 {[%emt 0:00:03]} Nc5 {[%emt 0:00:36]} 33. Bc4 {
[%emt 0:03:00]} Kf8 {[%emt 0:00:03]} 34. h5 {[%emt 0:02:24]} f6 {[%emt 0:00:41]
} 35. g4 {[%emt 0:00:54]} Ke7 {[%emt 0:00:07]} 36. Bxb3 {[%emt 0:00:29]} Nc1 {
[%emt 0:01:13]} 37. Bc4 {[%emt 0:00:43]} N1d3+ {[%emt 0:00:04]} 38. Kc3 {
[%emt 0:00:06]} Ne5 {[%emt 0:00:23]} 39. Be2 {[%emt 0:00:01]} Kd6 {
[%emt 0:00:39]} 40. f4 {[%emt 0:00:58]} Nc6 {[%emt 0:00:29]} 41. Bf3 {
[%emt 0:00:01]} Ne6 {[%emt 0:00:17]} 42. e5+ {[%emt 0:00:08]} fxe5 {
[%emt 0:00:12]} 43. Bxc6 {[%emt 0:00:00]} Kxc6 {[%emt 0:01:42]} 44. fxe5 {
[%emt 0:00:01]} Kd5 {[%emt 0:00:08]} 45. a4 {[%emt 0:00:13]} Kxe5 {
[%emt 0:00:25]} 46. Kc4 {[%emt 0:00:06]} Kd6 {[%emt 0:00:26]} 47. a5 {
[%emt 0:00:01]} Nc5 {[%emt 0:00:10]} 48. Kb5 {[%emt 0:00:09]} Nd7 {
[%emt 0:00:28]} 49. a6 {[%emt 0:00:58]} Kc7 {[%emt 0:00:04]} 0-1

[Event "OGD Prinsenstad-toernooi - A groep"]
[Site "Delft"]
[Date "2013.03.31"]
[Round "5.7"]
[White "Vistisen, Lars"]
[Black "Kohlweyer, Bernd"]
[Result "0-1"]
[ECO "B50"]
[WhiteElo "2172"]
[BlackElo "2460"]
[PlyCount "86"]
[EventDate "2013.03.29"]
[EventType "swiss"]
[EventRounds "6"]
[EventCountry "NED"]
[Source "DSC"]
[SourceDate "2013.02.04"]
[TimeControl "6000+10"]

1. e4 {[%emt 0:00:00]} c5 {[%emt 0:05:17]} 2. Nf3 {[%emt 0:00:02]} d6 {
[%emt 0:00:16]} 3. c3 {[%emt 0:00:18]} Nf6 {[%emt 0:00:07]} 4. h3 {
[%emt 0:00:17]} g6 {[%emt 0:00:41]} 5. Bd3 {[%emt 0:02:18]} Bg7 {[%emt 0:00:08]
} 6. O-O {[%emt 0:00:21]} O-O {[%emt 0:00:14]} 7. Bc2 {[%emt 0:00:27]} e5 {
[%emt 0:00:16]} 8. d4 {[%emt 0:00:40]} exd4 {[%emt 0:00:44]} 9. cxd4 {
[%emt 0:00:10]} Nc6 {[%emt 0:00:05]} 10. Nc3 {[%emt 0:04:49]} cxd4 {
[%emt 0:15:41]} 11. Nxd4 {[%emt 0:07:52]} Nxe4 {[%emt 0:00:10]} 12. Nxc6 {
[%emt 0:16:11]} Nxc3 {[%emt 0:00:46]} 13. Nxd8 {[%emt 0:01:54]} Nxd1 {
[%emt 0:00:07]} 14. Rxd1 {[%emt 0:08:31]} Rxd8 {[%emt 0:00:31]} 15. Bg5 {
[%emt 0:00:06]} Re8 {[%emt 0:01:08]} 16. Ba4 {[%emt 0:08:19]} Re2 {
[%emt 0:05:47]} 17. Rxd6 {[%emt 0:02:16]} Be6 {[%emt 0:00:06]} 18. Rad1 {
[%emt 0:06:05]} h6 {[%emt 0:00:12]} 19. Bd2 {[%emt 0:06:44]} Bxb2 {
[%emt 0:13:25]} 20. Bxh6 {[%emt 0:01:15]} Be5 {[%emt 0:00:52]} 21. R6d2 {
[%emt 0:02:03]} Rxd2 {[%emt 0:00:09]} 22. Rxd2 {[%emt 0:00:36]} Rc8 {
[%emt 0:00:07]} 23. Re2 {[%emt 0:03:53]} Bf6 {[%emt 0:02:27]} 24. Be3 {
[%emt 0:01:48]} a6 {[%emt 0:11:47]} 25. Bb6 {[%emt 0:00:23]} Rc3 {
[%emt 0:02:36]} 26. Bc2 {[%emt 0:07:14]} Rc6 {[%emt 0:07:31]} 27. Ba7 {
[%emt 0:02:10]} b5 {[%emt 0:00:22]} 28. Be4 {[%emt 0:00:59]} Rc1+ {
[%emt 0:01:36]} 29. Kh2 {[%emt 0:00:02]} Bc4 {[%emt 0:00:58]} 30. Rd2 {
[%emt 0:00:43]} Ra1 {[%emt 0:00:57]} 31. Bb7 {[%emt 0:01:37]} Bxa2 {
[%emt 0:01:01]} 32. f4 {[%emt 0:02:10]} Be6 {[%emt 0:01:15]} 33. Rd6 {
[%emt 0:01:07]} a5 {[%emt 0:00:51]} 34. Be4 {[%emt 0:00:15]} b4 {[%emt 0:09:15]
} 35. Bxg6 {[%emt 0:00:56]} b3 {[%emt 0:00:05]} 36. Be4 {[%emt 0:00:36]} Ra4 {
[%emt 0:02:45]} 37. Bd3 {[%emt 0:06:01]} Rxf4 {[%emt 0:00:09]} 38. g3 {
[%emt 0:00:10]} Rf3 {[%emt 0:01:30]} 39. Be4 {[%emt 0:01:18]} Rf1 {
[%emt 0:02:31]} 40. Rb6 {[%emt 0:00:11]} Re1 {[%emt 0:01:10]} 41. Bd3 {
[%emt 0:02:49]} Bd5 {[%emt 0:00:40]} 42. Rb8+ {[%emt 0:00:15]} Kg7 {
[%emt 0:00:15]} 43. Bg1 {[%emt 0:00:05]} Rd1 {[%emt 0:00:44]} 0-1

[Event "OGD Prinsenstad-toernooi - A groep"]
[Site "Delft"]
[Date "2013.03.31"]
[Round "5.9"]
[White "Thakoerdien, Jerrel"]
[Black "Freeke, Matthieu"]
[Result "1/2-1/2"]
[ECO "D59"]
[WhiteElo "2037"]
[BlackElo "2320"]
[PlyCount "57"]
[EventDate "2013.03.29"]
[EventType "swiss"]
[EventRounds "6"]
[EventCountry "NED"]
[Source "DSC"]
[SourceDate "2013.02.04"]
[TimeControl "6000+10"]

1. d4 {[%emt 0:00:00]} Nf6 {[%emt 0:00:00]} 2. Nf3 {[%emt 0:00:02]} d5 {
[%emt 0:00:12]} 3. c4 {[%emt 0:00:08]} e6 {[%emt 0:00:13]} 4. Nc3 {
[%emt 0:00:13]} Be7 {[%emt 0:00:56]} 5. Bg5 {[%emt 0:00:11]} h6 {[%emt 0:00:06]
} 6. Bh4 {[%emt 0:00:14]} O-O {[%emt 0:00:07]} 7. e3 {[%emt 0:00:17]} b6 {
[%emt 0:00:51]} 8. cxd5 {[%emt 0:00:42]} Nxd5 {[%emt 0:00:05]} 9. Bg3 {
[%emt 0:03:21]} Bb7 {[%emt 0:01:44]} 10. Bd3 {[%emt 0:03:27]} c5 {
[%emt 0:01:35]} 11. O-O {[%emt 0:01:31]} cxd4 {[%emt 0:03:41]} 12. exd4 {
[%emt 0:00:46]} Nd7 {[%emt 0:00:35]} 13. Rc1 {[%emt 0:03:25]} N7f6 {
[%emt 0:02:44]} 14. Bb1 {[%emt 0:09:01]} Rc8 {[%emt 0:04:41]} 15. Be5 {
[%emt 0:13:14]} Nxc3 {[%emt 0:16:38]} 16. Rxc3 {[%emt 0:01:02]} Rxc3 {
[%emt 0:06:30]} 17. bxc3 {[%emt 0:00:16]} Qc8 {[%emt 0:02:10]} 18. Re1 {
[%emt 0:08:47]} Nd5 {[%emt 0:11:20]} 19. Qd3 {[%emt 0:11:37]} f5 {
[%emt 0:00:15]} 20. c4 {[%emt 0:07:23]} Nb4 {[%emt 0:00:03]} 21. Qb3 {
[%emt 0:02:25]} Nc6 {[%emt 0:00:26]} 22. Bf4 {[%emt 0:15:14]} Na5 {
[%emt 0:07:30]} 23. Qe3 {[%emt 0:01:11]} Rf6 {[%emt 0:00:07]} 24. Rc1 {
[%emt 0:04:30]} Rg6 {[%emt 0:03:00]} 25. Bd3 {[%emt 0:01:16]} Ba3 {
[%emt 0:01:58]} 26. Rc2 {[%emt 0:00:25]} Nc6 {[%emt 0:03:25]} 27. Bxf5 {
[%emt 0:00:53]} exf5 {[%emt 0:00:18]} 28. Qxa3 {[%emt 0:00:13]} Na5 {
[%emt 0:11:16]} 29. Qc3 1/2-1/2

[Event "OGD Prinsenstad-toernooi - A groep"]
[Site "Delft"]
[Date "2013.03.31"]
[Round "6.1"]
[White "Haslinger, Stewart"]
[Black "L'Ami, Erwin"]
[Result "1/2-1/2"]
[ECO "B12"]
[WhiteElo "2547"]
[BlackElo "2615"]
[PlyCount "165"]
[EventDate "2013.03.29"]
[EventType "swiss"]
[EventRounds "6"]
[EventCountry "NED"]
[Source "DSC"]
[SourceDate "2013.02.04"]
[TimeControl "6000+10"]

1. e4 {[%emt 0:01:13]} c6 {[%emt 0:00:11]} 2. d4 {[%emt 0:00:09]} d5 {
[%emt 0:00:06]} 3. e5 {[%emt 0:00:03]} Bf5 {[%emt 0:00:08]} 4. Nf3 {
[%emt 0:00:08]} e6 {[%emt 0:00:07]} 5. Be2 {[%emt 0:00:04]} Ne7 {[%emt 0:00:16]
} 6. O-O {[%emt 0:00:17]} Nc8 {[%emt 0:00:18]} 7. Nbd2 {[%emt 0:00:28]} Be7 {
[%emt 0:00:17]} 8. Nb3 {[%emt 0:00:11]} O-O {[%emt 0:00:21]} 9. a4 {
[%emt 0:00:08]} Nd7 {[%emt 0:00:45]} 10. a5 {[%emt 0:00:11]} a6 {[%emt 0:00:22]
} 11. c4 {[%emt 0:02:05]} Na7 {[%emt 0:08:24]} 12. h3 {[%emt 0:00:35]} Rc8 {
[%emt 0:05:11]} 13. Be3 {[%emt 0:11:53]} dxc4 {[%emt 0:05:37]} 14. Bxc4 {
[%emt 0:00:32]} Nb5 {[%emt 0:00:14]} 15. Rc1 {[%emt 0:01:08]} Nc7 {
[%emt 0:04:01]} 16. Ne1 {[%emt 0:10:13]} Nd5 {[%emt 0:02:18]} 17. Bd2 {
[%emt 0:22:16]} Bg6 {[%emt 0:07:21]} 18. f4 {[%emt 0:02:56]} Kh8 {
[%emt 0:02:44]} 19. Qe2 {[%emt 0:03:03]} Qe8 {[%emt 0:06:06]} 20. g4 {
[%emt 0:07:09]} f5 {[%emt 0:03:05]} 21. exf6 {[%emt 0:02:38]} Bxf6 {
[%emt 0:01:32]} 22. Nf3 {[%emt 0:01:28]} Qd8 {[%emt 0:09:20]} 23. Bxd5 {
[%emt 0:11:54]} exd5 {[%emt 0:03:52]} 24. f5 {[%emt 0:00:03]} Re8 {
[%emt 0:01:21]} 25. Qg2 {[%emt 0:01:52]} Bf7 {[%emt 0:00:10]} 26. g5 {
[%emt 0:00:02]} Be7 {[%emt 0:00:18]} 27. Ne5 {[%emt 0:00:57]} Nxe5 {
[%emt 0:05:24]} 28. dxe5 {[%emt 0:00:04]} d4 {[%emt 0:00:34]} 29. e6 {
[%emt 0:01:29]} Bg8 {[%emt 0:00:11]} 30. Nc5 {[%emt 0:08:00]} Qd5 {
[%emt 0:04:49]} 31. Qxd5 {[%emt 0:01:00]} cxd5 {[%emt 0:00:05]} 32. Nxb7 {
[%emt 0:01:14]} Bf8 {[%emt 0:01:08]} 33. Bf4 {[%emt 0:00:22]} Rc4 {
[%emt 0:06:18]} 34. Be5 {[%emt 0:02:34]} d3 {[%emt 0:00:30]} 35. Rcd1 {
[%emt 0:00:58]} Re4 {[%emt 0:00:34]} 36. Bd6 {[%emt 0:03:15]} g6 {
[%emt 0:02:20]} 37. Bxf8 {[%emt 0:00:08]} Rxf8 {[%emt 0:00:03]} 38. Nc5 {
[%emt 0:00:39]} gxf5 {[%emt 0:00:24]} 39. Rxd3 {[%emt 0:00:12]} Re2 {
[%emt 0:02:39]} 40. Rxd5 {[%emt 0:00:33]} f4 {[%emt 0:00:23]} 41. Rf2 {
[%emt 0:01:16]} Re3 {[%emt 0:01:22]} 42. Rd4 {[%emt 0:01:11]} Rf5 {
[%emt 0:00:13]} 43. b4 {[%emt 0:00:17]} Rxg5+ {[%emt 0:01:03]} 44. Kh2 {
[%emt 0:00:10]} Bxe6 {[%emt 0:02:09]} 45. Nxe6 {[%emt 0:00:02]} Rxe6 {
[%emt 0:00:06]} 46. Rdxf4 {[%emt 0:00:03]} Kg7 {[%emt 0:02:17]} 47. Rf7+ {
[%emt 0:00:02]} Kg6 {[%emt 0:00:04]} 48. Rb7 {[%emt 0:00:05]} h6 {
[%emt 0:01:04]} 49. Rg2 {[%emt 0:00:17]} Kh5 {[%emt 0:00:51]} 50. Rxg5+ {
[%emt 0:00:38]} hxg5 {[%emt 0:02:53]} 51. Rb6 {[%emt 0:00:02]} Re4 {
[%emt 0:00:31]} 52. Kg3 {[%emt 0:00:10]} Rf4 {[%emt 0:01:21]} 53. Kg2 {
[%emt 0:00:16]} Rh4 {[%emt 0:00:47]} 54. Rb8 {[%emt 0:00:11]} Kg6 {
[%emt 0:00:27]} 55. Rb6+ {[%emt 0:00:10]} Kh5 {[%emt 0:00:59]} 56. Rxa6 {
[%emt 0:00:10]} Rxb4 {[%emt 0:00:05]} 57. Ra8 {[%emt 0:00:06]} Ra4 {
[%emt 0:00:17]} 58. a6 {[%emt 0:00:05]} Kg6 {[%emt 0:00:03]} 59. Kf2 {
[%emt 0:00:05]} Ra3 {[%emt 0:00:10]} 60. Kg2 {[%emt 0:00:06]} Kg7 {
[%emt 0:00:02]} 61. Ra7+ {[%emt 0:00:04]} Kg6 {[%emt 0:00:02]} 62. Ra8 {
[%emt 0:00:02]} Kg7 {[%emt 0:00:01]} 63. a7 {[%emt 0:00:08]} Kh7 {
[%emt 0:00:03]} 64. Kf2 {[%emt 0:00:02]} Kg7 {[%emt 0:00:03]} 65. Ke2 {
[%emt 0:00:01]} Kh7 {[%emt 0:00:02]} 66. Kd2 {[%emt 0:00:01]} Kg7 {
[%emt 0:00:03]} 67. Kc2 {[%emt 0:00:00]} Kh7 {[%emt 0:00:01]} 68. Kb2 {
[%emt 0:00:01]} Ra6 {[%emt 0:00:04]} 69. Kc3 {[%emt 0:00:02]} Kg7 {
[%emt 0:00:06]} 70. Kb4 {[%emt 0:00:02]} Ra1 {[%emt 0:00:02]} 71. Kc5 {
[%emt 0:00:01]} Rc1+ {[%emt 0:00:08]} 72. Kd6 {[%emt 0:00:03]} Rd1+ {
[%emt 0:00:04]} 73. Ke6 {[%emt 0:00:01]} Ra1 {[%emt 0:00:01]} 74. Kf5 {
[%emt 0:00:02]} Ra5+ {[%emt 0:00:05]} 75. Kg4 {[%emt 0:00:02]} Kh7 {
[%emt 0:00:03]} 76. Kh5 {[%emt 0:00:01]} Kg7 {[%emt 0:00:07]} 77. Kg4 {
[%emt 0:00:08]} Kh7 {[%emt 0:00:02]} 78. Kf3 {[%emt 0:00:01]} Kg7 {
[%emt 0:00:02]} 79. Ke4 {[%emt 0:00:03]} Ra1 {[%emt 0:00:05]} 80. Kf5 {
[%emt 0:00:14]} Ra5+ {[%emt 0:00:02]} 81. Ke6 {[%emt 0:00:00]} Ra6+ {
[%emt 0:00:13]} 82. Kd5 {[%emt 0:00:23]} Ra1 {[%emt 0:00:03]} 83. Ke4 1/2-1/2

[Event "OGD Prinsenstad-toernooi - A groep"]
[Site "Delft"]
[Date "2013.03.31"]
[Round "6.2"]
[White "Smeets, Jan"]
[Black "Slingerland, Fred"]
[Result "1/2-1/2"]
[ECO "B50"]
[WhiteElo "2627"]
[BlackElo "2336"]
[PlyCount "133"]
[EventDate "2013.03.29"]
[EventType "swiss"]
[EventRounds "6"]
[EventCountry "NED"]
[Source "DSC"]
[SourceDate "2013.02.04"]
[TimeControl "6000+10"]

1. e4 {[%emt 0:00:00]} c5 {[%emt 0:00:00]} 2. Nf3 {[%emt 0:00:00]} d6 {
[%emt 0:00:00]} 3. c3 {[%emt 0:00:00]} Nf6 {[%emt 0:00:07]} 4. Bd3 {
[%emt 0:00:03]} Nc6 {[%emt 0:00:54]} 5. Bc2 {[%emt 0:00:42]} e5 {[%emt 0:00:07]
} 6. O-O {[%emt 0:00:58]} Be7 {[%emt 0:00:36]} 7. h3 {[%emt 0:00:47]} d5 {
[%emt 0:00:24]} 8. d3 {[%emt 0:02:21]} O-O {[%emt 0:03:11]} 9. Nbd2 {
[%emt 0:05:16]} Qc7 {[%emt 0:03:08]} 10. Re1 {[%emt 0:02:38]} Rd8 {
[%emt 0:03:36]} 11. Qe2 {[%emt 0:01:32]} dxe4 {[%emt 0:07:43]} 12. dxe4 {
[%emt 0:00:19]} Nh5 {[%emt 0:02:54]} 13. Nf1 {[%emt 0:11:09]} Qd6 {
[%emt 0:06:37]} 14. g4 {[%emt 0:07:47]} Nf4 {[%emt 0:11:26]} 15. Bxf4 {
[%emt 0:00:28]} exf4 {[%emt 0:00:02]} 16. Rad1 {[%emt 0:11:12]} Qh6 {
[%emt 0:09:59]} 17. Rxd8+ {[%emt 0:00:32]} Bxd8 {[%emt 0:00:07]} 18. Kg2 {
[%emt 0:00:45]} Bc7 {[%emt 0:02:58]} 19. N1h2 {[%emt 0:05:03]} Bd7 {
[%emt 0:01:59]} 20. Bb3 {[%emt 0:04:42]} Be6 {[%emt 0:08:01]} 21. Qb5 {
[%emt 0:08:48]} Bb6 {[%emt 0:04:51]} 22. e5 {[%emt 0:01:22]} Rd8 {
[%emt 0:03:41]} 23. Qa4 {[%emt 0:04:20]} Bc7 {[%emt 0:03:20]} 24. Qb5 {
[%emt 0:02:50]} Bb6 {[%emt 0:00:07]} 25. Re4 {[%emt 0:05:48]} Ne7 {
[%emt 0:12:28]} 26. Bxe6 {[%emt 0:05:05]} Qxe6 {[%emt 0:02:21]} 27. a4 {
[%emt 0:00:14]} Ng6 {[%emt 0:02:35]} 28. Qc4 {[%emt 0:12:08]} Re8 {
[%emt 0:02:57]} 29. g5 {[%emt 0:03:38]} Bd8 {[%emt 0:04:59]} 30. Ng4 {
[%emt 0:02:30]} Qf5 {[%emt 0:00:21]} 31. Qb5 {[%emt 0:01:24]} Rf8 {
[%emt 0:00:01]} 32. Qxb7 {[%emt 0:00:12]} Bxg5 {[%emt 0:00:09]} 33. Re1 {
[%emt 0:00:38]} h5 {[%emt 0:00:29]} 34. Ngh2 {[%emt 0:00:01]} Nh4+ {
[%emt 0:01:30]} 35. Nxh4 Bxh4 36. Qe4 {[%emt 0:00:28]} Qg5+ {[%emt 0:01:10]}
37. Kf1 Qd8 38. Qxf4 {[%emt 0:00:20]} Qd3+ {[%emt 0:00:01]} 39. Kg2 {
[%emt 0:00:02]} Be7 {[%emt 0:00:24]} 40. Qe4 {[%emt 0:00:02]} Qd2 {
[%emt 0:00:04]} 41. Qe2 {[%emt 0:00:27]} Qg5+ {[%emt 0:00:18]} 42. Kh1 {
[%emt 0:00:02]} Qf5 {[%emt 0:00:29]} 43. Qf3 {[%emt 0:00:02]} Qc2 {
[%emt 0:00:03]} 44. Qxh5 {[%emt 0:00:21]} Qxf2 {[%emt 0:00:04]} 45. Re2 {
[%emt 0:00:13]} Qf4 {[%emt 0:00:07]} 46. Qg4 {[%emt 0:00:02]} Qc1+ 47. Kg2 Rb8
{[%emt 0:00:21]} 48. e6 {[%emt 0:00:02]} f6 {[%emt 0:00:26]} 49. Nf3 {
[%emt 0:00:40]} Rxb2 {[%emt 0:00:02]} 50. Qc4 {[%emt 0:00:05]} Rxe2+ 51. Qxe2
Qxc3 {[%emt 0:00:08]} 52. Qe4 {[%emt 0:00:02]} Qb2+ {[%emt 0:00:20]} 53. Kf1 {
[%emt 0:00:37]} Qa1+ {[%emt 0:00:09]} 54. Ke2 {[%emt 0:00:08]} Qb2+ {
[%emt 0:00:03]} 55. Kf1 {[%emt 0:00:03]} Qa1+ {[%emt 0:00:01]} 56. Kg2 {
[%emt 0:00:08]} Qb2+ {[%emt 0:00:01]} 57. Kg3 {[%emt 0:00:18]} Bd6+ 58. Kh4
Qf2+ {[%emt 0:00:37]} 59. Kh5 {[%emt 0:00:02]} Qg3 {[%emt 0:00:01]} 60. Qf5 {
[%emt 0:00:28]} c4 {[%emt 0:00:44]} 61. h4 {[%emt 0:00:05]} c3 {[%emt 0:00:06]}
62. Ng5 {[%emt 0:00:13]} fxg5 {[%emt 0:00:25]} 63. Qf7+ {[%emt 0:00:03]} Kh7 {
[%emt 0:00:07]} 64. Qg6+ {[%emt 0:00:02]} Kg8 {[%emt 0:00:01]} 65. Qf7+ {
[%emt 0:00:09]} Kh7 {[%emt 0:00:01]} 66. Qg6+ {[%emt 0:00:02]} Kg8 {
[%emt 0:00:01]} 67. Qf7+ {[%emt 0:00:01]} 1/2-1/2

[Event "OGD Prinsenstad-toernooi - A groep"]
[Site "Delft"]
[Date "2013.03.31"]
[Round "6.4"]
[White "Van den Doel, Erik"]
[Black "De Wit, Michel"]
[Result "1-0"]
[ECO "C70"]
[WhiteElo "2552"]
[BlackElo "2260"]
[PlyCount "81"]
[EventDate "2013.03.29"]
[EventType "swiss"]
[EventRounds "6"]
[EventCountry "NED"]
[Source "DSC"]
[SourceDate "2013.02.04"]
[TimeControl "6000+10"]

1. e4 e5 2. Nf3 Nc6 3. Bb5 a6 4. Ba4 Nge7 5. O-O g6 6. c3 Bg7 7. d4 b5 8. Bc2
d6 9. d5 Nb8 10. a4 bxa4 11. c4 O-O 12. Nc3 Nd7 13. Nxa4 f5 14. Ng5 Nf6 15. Nc3
f4 16. b4 h6 17. Ne6 Bxe6 18. dxe6 c6 19. Qd3 Ne8 20. Rd1 Qc8 21. c5 dxc5 22.
Na4 Ra7 23. Nxc5 Nc7 24. Bb2 Kh7 25. Qd7 Nb5 26. Qxc8 Rxc8 27. Rd7 Rcc7 28.
Rxa6 Rxa6 29. Nxa6 Ra7 30. Rxa7 Nxa7 31. Nc5 Nb5 32. Nd3 Nd4 33. Bxd4 exd4 34.
Nxf4 g5 35. Nd3 Kg8 36. g3 Ng6 37. f4 Kf8 38. Kf2 Ke7 39. Bb3 Nf8 40. f5 Kd6
41. e5+ 1-0

[Event "OGD Prinsenstad-toernooi - A groep"]
[Site "Delft"]
[Date "2013.03.31"]
[Round "6.5"]
[White "Hovhanisian, Mher"]
[Black "Legemaat, Gert"]
[Result "1-0"]
[ECO "D07"]
[WhiteElo "2494"]
[BlackElo "2195"]
[PlyCount "65"]
[EventDate "2013.03.29"]
[EventType "swiss"]
[EventRounds "6"]
[EventCountry "NED"]
[Source "DSC"]
[SourceDate "2013.02.04"]
[TimeControl "6000+10"]

1. d4 {[%emt 0:00:00]} d5 {[%emt 0:01:01]} 2. c4 {[%emt 0:00:00]} Nc6 {
[%emt 0:00:12]} 3. Nf3 {[%emt 0:01:41]} Bg4 {[%emt 0:00:19]} 4. Nc3 {
[%emt 0:01:05]} e6 {[%emt 0:02:04]} 5. Bf4 {[%emt 0:00:16]} Bxf3 {
[%emt 0:01:36]} 6. gxf3 {[%emt 0:00:13]} dxc4 {[%emt 0:08:08]} 7. e3 {
[%emt 0:00:40]} Bd6 {[%emt 0:00:09]} 8. Bg3 {[%emt 0:00:12]} Nge7 {
[%emt 0:04:59]} 9. Bxc4 {[%emt 0:00:19]} O-O {[%emt 0:02:24]} 10. a3 {
[%emt 0:02:01]} Nf5 {[%emt 0:02:43]} 11. Bd3 {[%emt 0:01:49]} Qg5 {
[%emt 0:07:58]} 12. f4 {[%emt 0:03:22]} Qh6 {[%emt 0:01:35]} 13. Qc2 {
[%emt 0:00:46]} Ncxd4 {[%emt 0:09:40]} 14. exd4 {[%emt 0:00:35]} Nxd4 {
[%emt 0:00:10]} 15. Qd1 {[%emt 0:02:36]} c5 {[%emt 0:11:51]} 16. Be4 {
[%emt 0:07:59]} f5 {[%emt 0:05:57]} 17. Bg2 {[%emt 0:01:24]} Bxf4 {
[%emt 0:04:28]} 18. Ne2 {[%emt 0:00:32]} g5 {[%emt 0:08:37]} 19. Bxf4 {
[%emt 0:11:21]} gxf4 {[%emt 0:00:23]} 20. Nxd4 {[%emt 0:04:36]} Rad8 {
[%emt 0:00:06]} 21. Bxb7 {[%emt 0:00:29]} cxd4 {[%emt 0:04:17]} 22. Rc1 {
[%emt 0:02:39]} Qg7 23. Qf3 {[%emt 0:04:41]} Kh8 {[%emt 0:09:14]} 24. Kf1 {
[%emt 0:01:24]} Rg8 {[%emt 0:00:23]} 25. Ba6 {[%emt 0:04:22]} e5 {
[%emt 0:00:28]} 26. Bc4 {[%emt 0:00:11]} e4 {[%emt 0:00:23]} 27. Qxf4 {
[%emt 0:02:20]} d3 {[%emt 0:05:43]} 28. Bxg8 {[%emt 0:01:55]} Rxg8 {
[%emt 0:00:06]} 29. Ke1 {[%emt 0:00:36]} e3 {[%emt 0:06:29]} 30. Qxe3 {
[%emt 0:02:49]} Qxb2 {[%emt 0:00:04]} 31. Rd1 {[%emt 0:03:25]} Rd8 {
[%emt 0:02:03]} 32. f4 {[%emt 0:05:44]} d2+ {[%emt 0:01:36]} 33. Kf2 {
[%emt 0:00:15]} 1-0

[Event "OGD Prinsenstad-toernooi - A groep"]
[Site "Delft"]
[Date "2013.03.31"]
[Round "6.6"]
[White "Kohlweyer, Bernd"]
[Black "Beerdsen, Thomas"]
[Result "1-0"]
[ECO "D12"]
[WhiteElo "2460"]
[BlackElo "2116"]
[PlyCount "59"]
[EventDate "2013.03.29"]
[EventType "swiss"]
[EventRounds "6"]
[EventCountry "NED"]
[Source "DSC"]
[SourceDate "2013.02.04"]
[TimeControl "6000+10"]

1. d4 {[%emt 0:00:00]} d5 {[%emt 0:00:00]} 2. c4 {[%emt 0:00:21]} c6 {
[%emt 0:00:02]} 3. e3 {[%emt 0:00:07]} Nf6 {[%emt 0:00:08]} 4. Nf3 {
[%emt 0:00:53]} Bf5 {[%emt 0:00:31]} 5. Nc3 {[%emt 0:00:09]} e6 {[%emt 0:00:13]
} 6. Nh4 {[%emt 0:00:07]} Bg4 {[%emt 0:00:13]} 7. Qb3 {[%emt 0:00:31]} Qb6 {
[%emt 0:00:38]} 8. h3 {[%emt 0:01:16]} Bh5 {[%emt 0:00:09]} 9. g4 {
[%emt 0:00:31]} Bg6 {[%emt 0:00:06]} 10. g5 {[%emt 0:03:32]} Nfd7 {
[%emt 0:01:45]} 11. Nxg6 {[%emt 0:00:14]} hxg6 {[%emt 0:00:07]} 12. e4 {
[%emt 0:00:36]} dxe4 {[%emt 0:00:21]} 13. c5 {[%emt 0:08:30]} Qxb3 {
[%emt 0:00:56]} 14. axb3 {[%emt 0:00:01]} e5 {[%emt 0:00:23]} 15. b4 {
[%emt 0:00:16]} exd4 {[%emt 0:00:26]} 16. Nxe4 {[%emt 0:00:06]} Ne5 {
[%emt 0:04:42]} 17. f4 {[%emt 0:05:27]} Nf3+ {[%emt 0:01:56]} 18. Kf2 {
[%emt 0:01:32]} Nh4 {[%emt 0:00:06]} 19. Bc4 {[%emt 0:01:20]} Be7 {
[%emt 0:01:08]} 20. Re1 {[%emt 0:01:52]} O-O {[%emt 0:01:32]} 21. Ng3 {
[%emt 0:03:10]} Re8 {[%emt 0:02:28]} 22. Re4 {[%emt 0:01:31]} Nd7 {
[%emt 0:00:45]} 23. Rxd4 {[%emt 0:22:51]} Nf8 {[%emt 0:06:26]} 24. Be3 {
[%emt 0:03:44]} a6 {[%emt 0:04:53]} 25. Rd3 {[%emt 0:03:14]} Bd8 {
[%emt 0:03:52]} 26. Rad1 {[%emt 0:01:26]} Bc7 {[%emt 0:00:22]} 27. Rd7 {
[%emt 0:01:12]} Nxd7 {[%emt 0:00:15]} 28. Rxd7 {[%emt 0:00:06]} Rec8 {
[%emt 0:00:27]} 29. Rxf7 {[%emt 0:02:03]} Bd8 {[%emt 0:00:41]} 30. Bd4 {
[%emt 0:00:27]} 1-0